bitfinex/quotes_SOLUSD_20251009
["timestamp","ask_amount","ask_price","bid_price","bid_amount"]
[1760024300636,4.69481308,219.88,219.82,16.62211808]
[1760024301264,4.69481308,219.88,219.82,15.92211808]
[1760024301767,4.00481308,219.87,219.82,15.92211808]
[1760024301937,4.69481308,219.87,219.82,15.92211808]
[1760024302351,4.00481308,219.85,219.81,37.32931874]
[1760024302553,4.00481308,219.82,219.77,37.31021158]
[1760024302753,4.00481308,219.81,219.77,32.76]
[1760024302978,4.69481308,219.81,219.77,32.76]
[1760024303274,0.69,219.81,219.75,15.92701343]
[1760024303450,4.69481308,219.81,219.75,15.92701343]
[1760024303648,0.69,219.83,219.75,15.92701343]
[1760024303847,4.69481308,219.87,219.76,0.7]
[1760024304088,20.8,219.88,219.78,10.87647521]
[1760024304268,4.69481308,219.89,219.79,32.76]
[1760024304486,0.69,219.89,219.8,0.7]
[1760024304782,4.69481308,219.92,219.8,0.7]
[1760024304982,4.69481308,219.92,219.81,10.87647521]
[1760024304983,0.69,219.92,219.81,10.87647521]
[1760024305151,0.69,220.0,219.89,10.87647521]
[1760024305351,0.69,220.01,219.9,33.48]
[1760024305551,4.00481308,219.97,219.9,32.78]
[1760024305782,0.69,219.96,219.88,0.7]
[1760024305950,0.69,219.96,219.85,0.7]
[1760024306150,4.00481308,219.9,219.83,31.92]
[1760024306357,0.69,219.9,219.82,33.54]
[1760024306560,4.00481308,219.89,219.82,33.54]
[1760024306764,4.00481308,219.9,219.82,33.54]
[1760024307181,0.69,219.92,219.83,0.7]
[1760024307363,10.87647521,220.01,219.84,10.87647521]
[1760024307676,4.00481308,219.96,219.86,10.87647521]
[1760024307865,4.00481308,219.96,219.87,33.54]
[1760024308053,4.00481308,219.96,219.88,0.7]
[1760024308254,4.00481308,219.96,219.89,15.91704942]
[1760024308577,4.00481308,219.97,219.89,15.91704942]
[1760024309178,0.69,219.98,219.89,15.91704942]
[1760024309179,25.49481308,219.98,219.89,15.91704942]
[1760024309485,4.00481308,219.97,219.89,15.91704942]
[1760024309784,4.69481308,219.96,219.89,4.5477284]
[1760024310077,4.00481308,219.92,219.87,15.91835358]
[1760024310281,0.69,219.95,219.87,15.91835358]
[1760024310456,4.00481308,219.94,219.87,15.91835358]
[1760024310657,24.80481308,219.94,219.87,15.91835358]
[1760024311593,21.49,219.93,219.87,4.54799838]
[1760024311794,21.49,219.93,219.87,15.91835358]
[1760024311996,4.00481308,219.91,219.87,15.91835358]
[1760024312196,0.69,219.9,219.87,4.54799838]
[1760024312373,4.00481308,219.91,219.84,15.92045147]
[1760024312572,0.69,219.92,219.84,15.92045147]
[1760024312780,4.00481308,219.91,219.84,15.92045147]
[1760024313175,4.00481308,219.91,219.84,16.62045147]
[1760024313371,4.00481308,219.93,219.85,0.7]
[1760024313676,20.8,219.94,219.85,0.7]
[1760024313870,0.69,219.99,219.86,10.87647521]
[1760024314071,0.69,219.99,219.87,0.7]
[1760024314283,4.00481308,219.97,219.89,15.91704942]
[1760024314493,0.69,219.99,219.9,0.7]
[1760024314687,4.69481308,219.99,219.9,0.7]
[1760024315203,0.69,219.99,219.89,48.75704942]
[1760024315382,0.69,219.99,219.89,49.45704942]
[1760024315589,4.00481308,219.97,219.89,49.45704942]
[1760024316095,4.00481308,220.0,219.9,0.7]
[1760024316284,4.69481308,220.01,219.91,15.91560183]
[1760024316466,0.69,220.04,219.92,11.57647521]
[1760024316666,4.00481308,220.07,219.94,10.87647521]
[1760024316867,4.69481308,220.08,219.97,20.8]
[1760024317086,25.49481308,220.08,219.98,0.7]
[1760024317299,4.00481308,220.07,219.98,0.7]
[1760024317485,4.00481308,220.06,219.98,0.7]
[1760024318096,4.00481308,220.03,219.96,32.9]
[1760024318312,4.69481308,220.03,219.96,32.9]
[1760024318509,0.69,220.03,219.97,4.54607446]
[1760024318812,4.00481308,219.98,219.95,4.54631626]
[1760024319030,4.00481308,219.96,219.9,32.9]
[1760024319185,4.00481308,219.94,219.91,4.54731481]
[1760024319611,4.00481308,219.95,219.91,4.54731481]
[1760024319915,4.00481308,219.96,219.91,15.91560183]
[1760024320206,4.69481308,219.96,219.91,15.91560183]
[1760024320706,4.00481308,219.96,219.91,11.36828702]
[1760024321409,4.00481308,219.95,219.88,32.94]
[1760024321611,4.00481308,219.95,219.87,0.7]
[1760024321612,4.00481308,219.9,219.87,0.7]
[1760024321813,4.00481308,219.92,219.87,0.7]
[1760024322112,4.00481308,219.92,219.75,10.87647521]
[1760024322113,4.00481308,219.9,219.83,33.62]
[1760024322294,4.00481308,219.88,219.8,0.7]
[1760024322490,4.00481308,219.88,219.82,4.54917659]
[1760024322811,4.00481308,219.88,219.81,37.46937715]
[1760024323009,4.00481308,219.87,219.81,4.54929011]
[1760024323216,4.00481308,219.87,219.8,5.24957508]
[1760024323589,4.00481308,219.87,219.8,16.62355142]
[1760024323896,4.66481308,219.87,219.8,15.92355142]
[1760024324100,4.00481308,219.82,219.8,4.54957508]
[1760024324300,4.00481308,219.81,219.78,4.54982813]
[1760024324497,4.00481308,219.82,219.78,11.37501137]
[1760024324718,4.00481308,219.84,219.78,11.37501137]
[1760024325292,20.8,219.85,219.78,0.65]
[1760024325613,4.00481308,219.85,219.78,0.65]
[1760024325792,4.00481308,219.85,219.76,15.92646522]
[1760024325992,4.00481308,219.84,219.76,16.57646522]
[1760024326402,21.46,219.86,219.76,16.57646522]
[1760024326603,4.00481308,219.84,219.76,16.57646522]
[1760024327708,4.00481308,219.81,219.76,15.92646522]
[1760024327907,4.00481308,219.79,219.76,4.55041863]
[1760024328103,4.68481308,219.79,219.73,11.37748475]
[1760024328619,4.68481308,219.79,219.74,4.5508328]
[1760024328917,4.00481308,219.8,219.74,11.377082]
[1760024329116,4.00481308,219.8,219.74,12.027082]
[1760024329504,4.00481308,219.8,219.74,11.377082]
[1760024329812,4.00481308,219.79,219.73,15.92863969]
[1760024330916,21.48,219.8,219.73,15.92863969]
[1760024331130,4.00481308,219.79,219.73,15.92863969]
[1760024331437,4.00481308,219.78,219.73,15.92863969]
[1760024331729,4.00481308,219.79,219.73,15.92863969]
[1760024332521,24.80481308,219.79,219.73,4.55103991]
[1760024332862,4.00481308,219.74,219.72,0.1]
[1760024333154,4.00481308,219.73,219.72,0.1]
[1760024333335,4.68481308,219.73,219.72,0.1]
[1760024333840,0.68,219.73,219.72,0.1]
[1760024334029,4.68481308,219.73,219.72,0.1]
[1760024334933,9.23585299,219.73,219.72,0.1]
[1760024336134,4.68481308,219.73,219.72,0.1]
[1760024336436,9.23585299,219.73,219.72,0.1]
[1760024337326,40.9123282,219.73,219.72,0.1]
[1760024337521,20.1123282,219.73,219.72,0.1]
[1760024337944,11.55647521,219.73,219.72,0.1]
[1760024338138,36.36128829,219.73,219.72,0.1]
[1760024338465,25.48481308,219.73,219.72,0.1]
[1760024339849,20.8,219.73,219.72,0.1]
[1760024340074,24.80481308,219.73,219.72,0.1]
[1760024340272,40.9123282,219.73,219.72,0.1]
[1760024340569,40.9123282,219.73,219.71,0.1]
[1760024340570,10.87647521,219.72,219.71,0.1]
[1760024340745,14.88128829,219.72,219.71,0.1]
[1760024340947,15.56128829,219.72,219.71,0.1]
[1760024341141,11.55647521,219.72,219.71,0.1]
[1760024341341,11.55647521,219.72,219.63,1.8011933]
[1760024341342,20.8,219.65,219.63,1.8011933]
[1760024341574,43.79647521,219.64,219.63,1.8011933]
[1760024341758,32.92,219.64,219.63,1.8011933]
[1760024341965,57.72481308,219.64,219.63,1.8011933]
[1760024342162,13.45866573,219.72,219.63,2.4511933]
[1760024342163,14.13866573,219.72,219.63,2.4511933]
[1760024342363,4.00481308,219.66,219.63,2.4511933]
[1760024342567,4.00481308,219.66,219.63,1.8011933]
[1760024342867,4.00481308,219.69,219.63,7.00428477]
[1760024343175,20.8,219.68,219.63,1.8011933]
[1760024343352,14.88128829,219.64,219.63,1.0811933]
[1760024343556,48.80128829,219.64,219.63,1.0811933]
[1760024343866,21.48,219.68,219.63,1.0811933]
[1760024344078,4.00481308,219.64,219.63,1.0811933]
[1760024344449,33.22,219.69,219.63,1.7311933]
[1760024344655,24.80481308,219.66,219.63,1.7311933]
[1760024344861,20.8,219.66,219.63,1.0811933]
[1760024345478,4.00481308,219.65,219.63,1.7311933]
[1760024345771,4.00481308,219.64,219.63,1.0811933]
[1760024346559,33.26,219.69,219.63,6.28427132]
[1760024346874,4.00481308,219.64,219.63,1.0811933]
[1760024349172,48.80128829,219.64,219.63,1.0811933]
[1760024349401,31.67647521,219.61,219.6,17.0]
[1760024349704,20.8,219.53,219.47,0.65]
[1760024349885,20.8,219.51,219.41,41.13418733]
[1760024350071,20.8,219.51,219.42,0.65]
[1760024350372,6.01606401,219.53,219.42,39.38849238]
[1760024350573,6.01606401,219.49,219.42,10.89367423]
[1760024351173,6.01606401,219.49,219.41,19.21418733]
[1760024351675,0.68,219.53,219.41,19.21418733]
[1760024351676,6.01606401,219.48,219.41,19.21418733]
[1760024351878,6.01606401,219.44,219.41,19.21418733]
[1760024352100,0.68,219.48,219.41,19.21418733]
[1760024352101,6.01606401,219.45,219.41,19.21418733]
[1760024352277,6.01606401,219.48,219.41,23.77177792]
[1760024352596,6.01606401,219.46,219.41,35.82597143]
[1760024352796,6.01606401,219.46,219.42,0.66]
[1760024353980,25.35603512,219.49,219.41,19.21418733]
[1760024354204,16.89253922,219.42,219.41,19.21418733]
[1760024354375,50.17253922,219.42,219.41,17.63418733]
[1760024354577,54.73000891,219.42,219.41,17.63418733]
[1760024354783,48.8539449,219.42,219.41,17.63418733]
[1760024354980,10.87647521,219.42,219.41,17.63418733]
[1760024355281,6.01606401,219.44,219.41,18.29418733]
[1760024355506,6.01606401,219.44,219.41,17.63418733]
[1760024355694,20.8,219.46,219.42,0.66]
[1760024355884,20.8,219.48,219.43,0.66]
[1760024356091,33.44,219.51,219.43,0.66]
[1760024356292,6.01606401,219.46,219.44,0.66]
[1760024356884,6.01606401,219.47,219.44,0.66]
[1760024357207,6.01606401,219.47,219.41,17.63418733]
[1760024357208,6.01606401,219.47,219.42,4.55746969]
[1760024357386,6.01606401,219.46,219.43,0.66]
[1760024357782,8.13970958,219.58,219.44,0.66]
[1760024357983,17.46,219.61,219.44,0.66]
[1760024358205,21.10349893,219.61,219.44,0.66]
[1760024358413,20.8,219.57,219.44,0.66]
[1760024358581,6.01606401,219.5,219.44,0.66]
[1760024358783,20.8,219.53,219.45,15.94896331]
[1760024358986,6.01606401,219.52,219.46,0.66]
[1760024359396,20.8,219.53,219.46,0.66]
[1760024359597,6.01606401,219.52,219.46,0.66]
[1760024360784,6.01606401,219.52,219.47,4.5564314]
[1760024360984,20.8,219.56,219.48,0.66]
[1760024361187,6.01606401,219.53,219.48,0.66]
[1760024361494,6.01606401,219.55,219.49,0.66]
[1760024362315,15.00478911,219.63,219.49,0.66]
[1760024362316,6.01606401,219.57,219.49,0.66]
[1760024362691,6.01606401,219.57,219.5,15.94533029]
[1760024362887,20.8,219.61,219.51,0.66]
[1760024363103,33.46,219.64,219.51,0.66]
[1760024363316,6.01606401,219.58,219.51,0.66]
[1760024363692,33.46,219.64,219.51,0.66]
[1760024363891,19.99999999,219.74,219.51,0.66]
[1760024364120,6.01606401,219.61,219.51,0.66]
[1760024364330,49.38863969,219.73,219.52,10.87647521]
[1760024364502,49.38863969,219.73,219.51,21.46]
[1760024364503,6.01606401,219.65,219.54,10.87647521]
[1760024364816,6.01606401,219.67,219.56,15.94097285]
[1760024365036,6.01606401,219.67,219.57,0.66]
[1760024365318,6.01606401,219.7,219.58,10.87647521]
[1760024365518,4.55012973,219.78,219.6,31.67647521]
[1760024365722,6.01606401,219.75,219.62,10.87647521]
[1760024366036,6.01606401,219.75,219.64,10.87647521]
[1760024366217,6.01606401,219.75,219.65,0.66]
[1760024366406,6.01606401,219.78,219.65,0.66]
[1760024366795,25.34958406,219.81,219.66,15.93371574]
[1760024366992,6.01606401,219.77,219.67,0.66]
[1760024367192,6.01606401,219.71,219.62,33.46]
[1760024367394,6.01606401,219.69,219.63,0.66]
[1760024367624,6.01606401,219.67,219.63,0.66]
[1760024367820,6.01606401,219.67,219.64,0.66]
[1760024368012,6.01606401,219.67,219.65,0.66]
[1760024368422,6.01606401,219.71,219.66,0.66]
[1760024368611,20.8,219.78,219.66,0.66]
[1760024368908,6.01606401,219.71,219.67,0.66]
[1760024369532,6.01606401,219.71,219.68,0.66]
[1760024369895,4.54997669,219.79,219.68,0.66]
[1760024370106,6.01606401,219.71,219.65,0.66]
[1760024370522,6.01606401,219.69,219.65,0.66]
[1760024370726,5.51606401,219.69,219.65,0.66]
[1760024370900,5.51606401,219.69,219.65,5.21264227]
[1760024371101,5.51606401,219.69,219.66,0.66]
[1760024371312,4.55081704,219.75,219.65,15.93438595]
[1760024371523,6.01606401,219.71,219.67,0.66]
[1760024371723,6.01606401,219.71,219.68,0.66]
[1760024372027,6.01606401,219.77,219.69,0.66]
[1760024372401,6.01606401,219.75,219.69,0.66]
[1760024372600,20.8,219.8,219.66,0.66]
[1760024372601,6.01606401,219.71,219.66,0.66]
[1760024372823,6.01606401,219.71,219.67,4.55228296]
[1760024373203,6.01606401,219.72,219.68,0.66]
[1760024373938,6.01606401,219.72,219.67,4.55228296]
[1760024374108,6.01606401,219.73,219.68,0.66]
[1760024374302,20.8,219.76,219.68,0.66]
[1760024374532,4.55003323,219.78,219.68,0.66]
[1760024374844,3.02653705,219.81,219.71,20.8]
[1760024375125,3.02653705,219.81,219.7,31.67647521]
[1760024375126,6.01606401,219.81,219.73,20.8]
[1760024375325,6.01606401,219.79,219.72,0.66]
[1760024375510,6.01606401,219.79,219.72,34.34]
[1760024376318,4.54879147,219.84,219.73,15.92863969]
[1760024376512,6.01606401,219.8,219.73,15.92863969]
[1760024377033,4.54879147,219.84,219.73,15.92863969]
[1760024377216,6.01606401,219.81,219.73,15.92863969]
[1760024377418,6.01606401,219.81,219.75,4.55062571]
[1760024377622,6.01606401,219.81,219.75,15.92718998]
[1760024377936,4.54879147,219.84,219.75,15.92718998]
[1760024378113,4.5475216,219.9,219.76,0.66]
[1760024378314,15.42399681,219.9,219.76,0.66]
[1760024378512,6.01606401,219.89,219.77,10.87647521]
[1760024378715,6.01606401,219.9,219.78,34.28]
[1760024378908,6.01606401,219.9,219.79,0.66]
[1760024379127,0.2,219.93,219.79,0.66]
[1760024379128,6.01606401,219.85,219.79,0.66]
[1760024379334,6.01606401,219.86,219.78,33.64]
[1760024379538,6.01606401,219.86,219.8,4.54959053]
[1760024380110,25.34782707,219.89,219.8,4.54959053]
[1760024380311,6.01606401,219.88,219.8,4.54959053]
[1760024380914,20.8,219.89,219.81,0.66]
[1760024381110,6.01606401,219.85,219.74,22.25328217]
[1760024381435,6.01606401,219.82,219.75,16.58718998]
[1760024381619,20.8,219.87,219.75,16.58718998]
[1760024381620,6.01606401,219.84,219.76,0.66]
[1760024382133,6.01606401,219.83,219.76,0.66]
[1760024382650,6.01606401,219.82,219.76,0.66]
[1760024382939,6.01606401,219.82,219.77,4.55021158]
[1760024383449,20.8,219.85,219.77,15.92574054]
[1760024383742,6.01606401,219.84,219.78,0.7]
[1760024384049,20.8,219.86,219.74,11.37684292]
[1760024384224,6.01606401,219.8,219.74,11.37684292]
[1760024385024,6.01606401,219.77,219.73,4.55103991]
[1760024385223,6.01606401,219.79,219.74,0.68]
[1760024385532,6.01606401,219.78,219.73,4.55103991]
[1760024385742,6.01606401,219.78,219.73,5.23103991]
[1760024386327,6.01606401,219.76,219.71,4.55136156]
[1760024386530,6.01606401,219.74,219.71,4.55136156]
[1760024386816,6.01606401,219.73,219.69,4.5516728]
[1760024387024,6.01606401,219.71,219.66,4.55249021]
[1760024387439,6.01606401,219.71,219.66,5.23249021]
[1760024387614,6.01606401,219.71,219.66,4.55249021]
[1760024387822,6.01606401,219.71,219.66,5.23249021]
[1760024388644,6.01606401,219.71,219.66,4.55249021]
[1760024388826,6.01606401,219.71,219.65,33.56]
[1760024389025,6.01606401,219.7,219.65,33.56]
[1760024389326,6.01606401,219.69,219.63,0.68]
[1760024389529,6.01606401,219.69,219.64,0.68]
[1760024389721,6.01606401,219.7,219.63,4.55311205]
[1760024389922,6.01606401,219.7,219.65,0.68]
[1760024390141,6.01606401,219.69,219.65,0.68]
[1760024390338,6.01606401,219.7,219.66,4.55249021]
[1760024390518,4.55041863,219.76,219.66,4.55249021]
[1760024390725,6.01606401,219.74,219.67,0.68]
[1760024391524,20.8,219.76,219.67,0.68]
[1760024391741,6.01606401,219.74,219.67,0.68]
[1760024391929,6.01606401,219.74,219.66,15.93371574]
[1760024391930,6.01606401,219.72,219.65,0.68]
[1760024392132,6.01606401,219.71,219.65,0.68]
[1760024394947,20.8,219.74,219.66,15.93371574]
[1760024395146,26.81606401,219.74,219.67,0.68]
[1760024395346,27.31606401,219.74,219.67,0.68]
[1760024395873,6.01606401,219.73,219.67,0.68]
[1760024396073,6.01606401,219.72,219.67,0.68]
[1760024396564,21.3,219.74,219.67,0.68]
[1760024396768,6.01606401,219.72,219.67,0.68]
[1760024397147,6.01606401,219.72,219.68,4.55207574]
[1760024398837,6.01606401,219.69,219.63,11.38240998]
[1760024399038,6.01606401,219.66,219.6,0.68]
[1760024399262,6.01606401,219.65,219.61,4.5535267]
[1760024400138,6.01606401,219.64,219.61,4.5535267]
[1760024400338,6.01606401,219.62,219.54,4.55497859]
[1760024400565,6.01606401,219.59,219.54,4.55497859]
[1760024400746,6.01606401,219.61,219.55,0.68]
[1760024400947,20.8,219.63,219.55,0.68]
[1760024401149,6.01606401,219.62,219.56,4.55456367]
[1760024401464,6.01606401,219.57,219.51,4.55560111]
[1760024401644,6.01606401,219.58,219.52,0.68]
[1760024401840,20.8,219.6,219.52,0.68]
[1760024401841,6.01606401,219.59,219.52,0.68]
[1760024402966,26.81606401,219.53,219.43,0.1]
[1760024403174,6.01606401,219.44,219.43,0.1]
[1760024403353,20.8,219.45,219.43,0.1]
[1760024403866,6.01606401,219.48,219.43,5.33712646]
[1760024404069,6.01606401,219.45,219.43,0.78]
[1760024404286,6.01606401,219.45,219.43,0.1]
[1760024404452,6.01606401,219.45,219.43,4.65723663]
[1760024405267,11.38704764,219.55,219.43,4.65723663]
[1760024405268,6.01606401,219.46,219.44,0.68]
[1760024405773,6.01606401,219.46,219.43,16.05039162]
[1760024405774,6.01606401,219.47,219.43,16.05039162]
[1760024405948,6.01606401,219.47,219.44,0.68]
[1760024406142,6.01606401,219.47,219.45,4.55684666]
[1760024406469,6.01606401,219.47,219.43,0.1]
[1760024406647,6.01606401,219.46,219.43,0.78]
[1760024406847,4.55540698,219.52,219.44,4.55704857]
[1760024407048,6.01606401,219.46,219.44,4.55704857]
[1760024407245,10.87647521,219.56,219.45,0.68]
[1760024407246,6.01606401,219.5,219.45,0.68]
[1760024407555,15.43041758,219.59,219.45,0.68]
[1760024407756,6.01606401,219.51,219.45,0.68]
[1760024408140,6.01606401,219.49,219.45,5.2368036]
[1760024408344,6.01606401,219.47,219.45,4.5568036]
[1760024408771,6.01606401,219.47,219.43,4.65708104]
[1760024408953,6.01606401,219.45,219.43,4.65708104]
[1760024409152,6.01606401,219.45,219.43,0.1]
[1760024409559,20.8,219.48,219.43,0.1]
[1760024409759,6.01606401,219.44,219.43,0.1]
[1760024411153,10.57311833,219.44,219.43,0.1]
[1760024411778,4.55705432,219.44,219.43,0.1]
[1760024412073,8.06975758,219.44,219.43,0.1]
[1760024412374,12.6268119,219.44,219.43,0.1]
[1760024412768,24.83487879,219.42,219.41,17.63418733]
[1760024412969,20.8,219.42,219.41,17.63418733]
[1760024413176,4.03487879,219.42,219.41,17.63418733]
[1760024413976,20.8,219.43,219.41,17.63418733]
[1760024414278,4.03487879,219.42,219.41,17.63418733]
[1760024417212,39.42875564,219.42,219.22,0.66]
[1760024417479,20.8,219.34,219.21,0.66]
[1760024417662,20.8,219.3,219.21,0.66]
[1760024417860,4.03487879,219.27,219.21,0.66]
[1760024418055,20.8,219.3,219.2,16.96711285]
[1760024418056,4.03487879,219.23,219.2,1.0]
[1760024418274,20.8,219.29,219.2,1.0]
[1760024418491,20.8,219.29,219.17,4.56266824]
[1760024418657,4.03487879,219.25,219.13,15.9722539]
[1760024418856,20.8,219.28,219.13,15.9722539]
[1760024419064,20.8,219.28,219.14,33.98]
[1760024419263,4.03487879,219.23,219.13,38.78975949]
[1760024419570,4.03487879,219.2,219.13,15.9722539]
[1760024419758,0.66,219.25,219.13,15.9722539]
[1760024419960,4.03487879,219.19,219.13,49.9322539]
[1760024420295,20.8,219.28,219.13,15.9722539]
[1760024420471,4.03487879,219.2,219.14,0.66]
[1760024420981,4.03487879,219.24,219.14,0.66]
[1760024421164,20.8,219.27,219.14,0.66]
[1760024421362,4.03487879,219.22,219.15,33.98]
[1760024421564,20.8,219.27,219.16,0.66]
[1760024421786,4.03487879,219.23,219.16,0.66]
[1760024421994,33.96,219.3,219.16,21.46]
[1760024422164,4.03487879,219.25,219.17,34.64]
[1760024422358,38.51999983,219.3,219.19,4.56225192]
[1760024422558,20.8,219.3,219.2,10.87647521]
[1760024422758,4.03487879,219.29,219.21,0.66]
[1760024422968,4.03487879,219.29,219.21,34.64]
[1760024423190,4.03487879,219.29,219.22,0.66]
[1760024423489,20.8,219.3,219.22,0.66]
[1760024423788,4.03487879,219.29,219.22,0.66]
[1760024423988,4.03487879,219.29,219.22,34.64]
[1760024424193,4.03487879,219.28,219.23,0.66]
[1760024424391,4.03487879,219.28,219.25,4.56100342]
[1760024424699,20.8,219.32,219.25,15.96351197]
[1760024424891,4.55877944,219.36,219.26,0.66]
[1760024425186,4.03487879,219.32,219.26,0.66]
[1760024426289,4.03487879,219.33,219.26,0.66]
[1760024426497,4.03487879,219.33,219.27,15.9620559]
[1760024426665,4.03487879,219.33,219.28,0.66]
[1760024426864,4.03487879,219.33,219.29,0.66]
[1760024427090,20.8,219.37,219.29,0.66]
[1760024427290,38.53805388,219.4,219.29,0.66]
[1760024427469,33.98,219.4,219.29,0.66]
[1760024427674,0.6,219.36,219.25,0.66]
[1760024427888,1.26,219.36,219.26,0.66]
[1760024428092,1.26,219.36,219.23,49.90496829]
[1760024428302,4.03487879,219.27,219.23,49.90496829]
[1760024428464,0.6,219.36,219.23,49.90496829]
[1760024428465,0.66,219.33,219.24,0.66]
[1760024428672,4.03487879,219.29,219.24,0.66]
[1760024428878,4.03487879,219.29,219.25,0.66]
[1760024429077,21.46,219.36,219.26,0.66]
[1760024429679,20.8,219.37,219.26,0.66]
[1760024429900,0.66,219.39,219.26,0.66]
[1760024429901,4.03487879,219.33,219.26,0.66]
[1760024430207,4.03487879,219.37,219.27,33.92]
[1760024430382,4.03487879,219.3,219.25,33.92]
[1760024430584,0.66,219.36,219.26,0.66]
[1760024430892,4.03487879,219.33,219.26,0.66]
[1760024431096,5.21825679,219.39,219.26,0.66]
[1760024431411,4.03487879,219.33,219.26,0.66]
[1760024431606,4.03487879,219.43,219.29,10.87647521]
[1760024431782,0.66,219.47,219.31,10.87647521]
[1760024431985,4.03487879,219.46,219.33,10.87647521]
[1760024432311,34.6,219.52,219.35,10.87647521]
[1760024432483,4.03487879,219.5,219.37,15.95477959]
[1760024432682,4.03487879,219.48,219.38,0.66]
[1760024433711,5.21560111,219.51,219.38,0.66]
[1760024433911,4.03487879,219.49,219.38,0.66]
[1760024434220,4.03487879,219.47,219.38,0.66]
[1760024434715,4.03487879,219.47,219.39,49.91332512]
[1760024435096,0.66,219.51,219.4,0.66]
[1760024435416,20.8,219.52,219.42,20.8]
[1760024435417,4.03487879,219.52,219.42,20.8]
[1760024435588,0.66,219.54,219.43,0.66]
[1760024436016,4.03487879,219.53,219.43,0.66]
[1760024436622,4.69487879,219.54,219.44,15.94969012]
[1760024436796,0.66,219.54,219.44,15.94969012]
[1760024436993,4.03487879,219.53,219.45,0.66]
[1760024437300,4.03487879,219.53,219.45,34.56]
[1760024437513,0.66,219.56,219.45,34.56]
[1760024437814,4.03487879,219.54,219.46,0.66]
[1760024438622,4.03487879,219.56,219.47,15.9475099]
[1760024438793,0.66,219.58,219.48,0.66]
[1760024438993,20.8,219.59,219.48,0.66]
[1760024438994,4.03487879,219.57,219.48,0.66]
[1760024439605,0.66,219.58,219.48,0.66]
[1760024439796,4.03487879,219.56,219.48,0.66]
[1760024440113,0.66,219.58,219.48,0.66]
[1760024440316,4.69487879,219.58,219.48,0.66]
[1760024440811,0.66,219.58,219.49,15.94605675]
[1760024441019,4.03487879,219.57,219.5,0.66]
[1760024441312,34.52,219.65,219.5,0.66]
[1760024441519,4.03487879,219.63,219.5,0.66]
[1760024441698,3.01802993,219.64,219.5,0.66]
[1760024442014,3.01802993,219.64,219.52,20.8]
[1760024442198,3.67802993,219.72,219.56,20.8]
[1760024442401,0.66,219.72,219.57,0.66]
[1760024442604,0.66,219.72,219.58,15.93952089]
[1760024442799,0.66,219.72,219.61,20.8]
[1760024443012,4.69487879,219.72,219.62,33.84]
[1760024443193,4.03487879,219.72,219.63,0.71]
[1760024443713,0.86,219.75,219.63,0.71]
[1760024443916,4.03487879,219.73,219.63,0.71]
[1760024444107,0.2,219.75,219.63,0.71]
[1760024444418,0.2,219.75,219.66,10.87647521]
[1760024444600,0.2,219.75,219.7,36.73081474]
[1760024445003,3.0150768,219.85,219.73,20.8]
[1760024445205,4.03487879,219.83,219.74,21.51]
[1760024445610,4.03487879,219.81,219.74,34.71]
[1760024445820,4.03487879,219.78,219.72,34.0]
[1760024446120,0.66,219.81,219.72,34.0]
[1760024446319,4.03487879,219.78,219.72,34.0]
[1760024446498,0.66,219.81,219.72,34.0]
[1760024446699,0.66,219.81,219.6,23.62615086]
[1760024446700,4.03487879,219.75,219.71,38.55145418]
[1760024446899,4.03487879,219.75,219.71,4.55145418]
[1760024447518,0.66,219.8,219.71,4.55145418]
[1760024447819,0.66,219.8,219.71,16.64008965]
[1760024448009,4.03487879,219.79,219.72,0.71]
[1760024448198,4.03487879,219.81,219.72,0.71]
[1760024448394,4.03487879,219.83,219.72,0.71]
[1760024448808,0.66,219.85,219.73,15.92863969]
[1760024449021,4.03487879,219.82,219.74,0.71]
[1760024449428,0.66,219.88,219.75,33.94]
[1760024449608,4.03487879,219.83,219.75,33.94]
[1760024449806,4.03487879,219.83,219.76,0.71]